lending/lending_fUSD_20260110
["ID","MTS","AMOUNT","RATE_DAILY","PERIOD"]
[401247072,1768071040972,-500.0,0.00015803,2]
[401247073,1768071040981,-500.0,0.00015803,2]
[401247074,1768071040991,-500.0,0.00015803,2]
[401247075,1768071041000,-500.0,0.00015803,2]
[401247076,1768071041010,-3253.6794628,0.00015804,2]
[401247077,1768071041019,-12328.59,0.00015804,2]
[401247078,1768071041028,-9999.99,0.00015804,2]
[401247079,1768071041037,-8017.43,0.00015804,2]
[401247080,1768071041047,-2087.19810021,0.00015804,2]
[401247081,1768071041056,-999.99,0.00015858,2]
[401247082,1768071041066,-166.66,0.00015858,2]
[401247084,1768071041075,-382.56,0.0001589,2]
[401247085,1768071041085,-500.0,0.0001589,2]
[401247087,1768071041094,-505.93123413,0.0001589,2]
[401247089,1768071041103,-500.0,0.0001589,2]
[401247091,1768071041113,-500.0,0.0001589,2]
[401247093,1768071041123,-200.0,0.0001589,2]
[401247095,1768071041133,-157.35456451,0.0001589,2]
[401247097,1768071041143,-500.0,0.0001589,2]
[401247099,1768071041152,-237.03265591,0.0001589,2]
[401247102,1768071041165,-151.0,0.0001589,2]
[401247104,1768071041175,-151.0,0.0001589,2]
[401247106,1768071041184,-151.0,0.0001589,2]
[401247108,1768071041194,-151.0,0.0001589,2]
[401247110,1768071041203,-151.0,0.0001589,2]
[401247112,1768071041212,-151.0,0.0001589,2]
[401247114,1768071041222,-151.0,0.0001589,2]
[401247116,1768071041231,-151.0,0.0001589,2]
[401247118,1768071041241,-151.0,0.0001589,2]
[401247120,1768071041250,-151.0,0.0001589,2]
[401247122,1768071041260,-151.0,0.0001589,2]
[401247124,1768071041269,-151.0,0.0001589,2]
[401247126,1768071041279,-151.0,0.0001589,2]
[401247128,1768071041288,-500.0,0.00015899,2]
[401247130,1768071041298,-151.0,0.00015931,2]
[401247132,1768071041308,-151.0,0.00015931,2]
[401247134,1768071041318,-3253.67946274,0.00016037,2]
[401247136,1768071041328,-2087.19810019,0.00016037,2]
[401247138,1768071041338,-296.44,0.00016123,2]
[401247141,1768071041347,-382.56,0.00016164,2]
[401247143,1768071041360,-166.66,0.00016172,2]
[401247145,1768071041370,-500.0,0.00016173,2]
[401247147,1768071041380,-200.0,0.00016183,2]
[401247149,1768071041391,-150.0,0.000162,2]
[401247151,1768071041402,-150.0,0.000162,2]
[401247153,1768071041411,-150.0,0.000162,2]
[401247155,1768071041421,-150.0,0.000162,2]
[401247157,1768071041431,-150.0,0.000162,2]
[401247159,1768071041440,-150.0,0.000162,2]
[401247161,1768071041450,-150.0,0.000162,2]
[401247163,1768071041459,-150.0,0.000162,2]
[401247165,1768071041468,-150.0,0.000162,2]
[401247167,1768071041477,-150.0,0.000162,2]
[401247169,1768071041487,-150.0,0.000162,2]
[401247171,1768071041496,-150.0,0.000162,2]
[401247173,1768071041506,-150.0,0.00016264,2]
[401247175,1768071041516,-3253.67946274,0.0001627,2]
[401247177,1768071041525,-2087.19810019,0.0001627,2]
[401247179,1768071041535,-150.0,0.00016278,2]
[401247181,1768071041544,-150.0,0.0001629,2]
[401247184,1768071041557,-328.28462056,0.00016291,2]
[401247186,1768071041566,-328.28462056,0.00016291,2]
[401247188,1768071041575,-150.0,0.000163,2]
[401247190,1768071041587,-150.0,0.00016312,2]
[401247192,1768071041596,-150.0,0.00016329,2]
[401247194,1768071041607,-150.0,0.00016329,2]
[401247196,1768071041616,-150.0,0.00016329,2]
[401247198,1768071041625,-150.0,0.00016357,2]
[401247200,1768071041635,-150.0,0.0001638,2]
[401247202,1768071041644,-150.0,0.00016393,2]
[401247204,1768071041653,-150.0,0.000164,2]
[401247206,1768071041663,-250.0,0.00016407,2]
[401247208,1768071041673,-150.0,0.00016425,2]
[401247210,1768071041683,-150.0,0.00016435,2]
[401247212,1768071041692,-382.56,0.00016438,2]
[401247214,1768071041703,-398.68305945,0.00016438,2]
[401247216,1768071041712,-500.0,0.00016438,2]
[401247218,1768071041722,-150.0,0.00016457,2]
[401247220,1768071041731,-150.0,0.00016457,2]
[401247222,1768071041744,-150.0,0.00016457,2]
[401247224,1768071041754,-150.0,0.0001647,2]
[401247226,1768071041763,-166.66,0.00016486,2]
[401247228,1768071041772,-150.0,0.000165,2]
[401247230,1768071041783,-3253.67946274,0.00016503,2]
[401247232,1768071041794,-2087.19810019,0.00016503,2]
[401247234,1768071041803,-150.0,0.00016513,2]
[401247236,1768071041814,-150.0,0.00016521,2]
[401247238,1768071041824,-150.0,0.00016537,2]
[401247240,1768071041834,-150.0,0.0001656,2]
[401247242,1768071041843,-150.0,0.00016586,2]
[401247244,1768071041857,-150.0,0.00016586,2]
[401247246,1768071041865,-150.0,0.00016586,2]
[401247248,1768071041874,-150.0,0.00016591,2]
[401247249,1768071041884,-150.0,0.000166,2]
[401247251,1768071041894,-150.0,0.0001665,2]
[401247254,1768071041904,-150.0,0.0001665,2]
[401247255,1768071041920,-150.0,0.0001665,2]
[401247258,1768071041931,-150.0,0.0001665,2]
[401247260,1768071041941,-150.0,0.0001665,2]
[401247262,1768071041959,-1428.32031009,0.00016652,2]
[401247265,1768071041970,-1740.0035,0.00016662,2]
[401247267,1768071041979,-28752.3012,0.00016662,2]
[401247269,1768071041988,-150.0,0.0001667,2]
[401247271,1768071041998,-150.0,0.000167,2]
[401247273,1768071042008,-382.56,0.00016712,2]
[401247275,1768071042017,-150.0,0.00016714,2]
[401247277,1768071042027,-150.0,0.00016714,2]
[401247279,1768071042036,-150.0,0.00016714,2]
[401247281,1768071042046,-3253.67946274,0.00016736,2]
[401247283,1768071042056,-2087.19810019,0.00016736,2]
[401247285,1768071042065,-150.0,0.0001674,2]
[401247287,1768071042075,-150.0,0.00016748,2]
[401247289,1768071042084,-233.67326927,0.00016761,2]
[401247291,1768071042094,-1899.23071139,0.00016761,2]
[401247293,1768071042104,-231.40282924,0.00016761,2]
[401247295,1768071042113,-500.0,0.00016761,2]
[401247297,1768071042123,-500.0,0.00016761,2]
[401247299,1768071042132,-500.0,0.00016761,2]
[401247301,1768071042141,-500.0,0.00016761,2]
[401247303,1768071042151,-150.0,0.00016762,2]
[401247305,1768071042161,-150.0,0.00016779,2]
[401247307,1768071042170,-150.0,0.000168,2]
[401247309,1768071042180,-150.0,0.00016826,2]
[401247311,1768071042189,-150.0,0.0001683,2]
[401247313,1768071042199,-150.0,0.00016843,2]
[401247315,1768071042208,-150.0,0.00016843,2]
[401247317,1768071042218,-150.0,0.00016843,2]
[401247319,1768071042226,-150.0,0.00016875,2]
[401247321,1768071042236,-328.28462056,0.00016893,2]
[401247323,1768071042245,-328.28462056,0.00016893,2]
[401247325,1768071042254,-150.0,0.000169,2]
[401247327,1768071042263,-150.0,0.00016904,2]
[401247330,1768071042274,-150.0,0.00016907,2]
[401247332,1768071042285,-150.0,0.0001692,2]
[401247334,1768071042295,-3253.67946274,0.00016968,2]
[401247336,1768071042309,-2087.19810019,0.00016968,2]
[401247338,1768071042319,-150.0,0.00016971,2]
[401247340,1768071042328,-150.0,0.00016971,2]
[401247342,1768071042338,-150.0,0.00016971,2]
[401247344,1768071042348,-150.0,0.00016983,2]
[401247346,1768071042358,-382.58,0.00016986,2]
[401247348,1768071042367,-150.0,0.00016987,2]
[401247350,1768071042376,-150.0,0.00017,2]
[401247352,1768071042386,-250.0,0.00017,2]
[401247355,1768071042396,-150.0,0.0001701,2]
[401247357,1768071042405,-150.0,0.00017036,2]
[401247359,1768071042415,-150.0,0.00017061,2]
[401247361,1768071042424,-150.0,0.0001707,2]
[401247363,1768071042433,-150.0,0.000171,2]
[401247365,1768071042442,-150.0,0.000171,2]
[401247367,1768071042452,-150.0,0.000171,2]
[401247369,1768071042461,-150.0,0.000171,2]
[401247371,1768071042471,-150.0,0.000171,2]
[401247373,1768071042481,-150.0,0.000171,2]
[401247375,1768071042495,-150.0,0.000171,2]
[401247377,1768071042505,-150.0,0.000171,2]
[401247379,1768071042515,-150.0,0.000171,2]
[401247381,1768071042525,-150.0,0.00017139,2]
[401247383,1768071042534,-150.0,0.00017164,2]
[401247385,1768071042543,-150.0,0.0001719,2]
[401247387,1768071042553,-150.0,0.000172,2]
[401247389,1768071042563,-3253.67946274,0.00017201,2]
[401247391,1768071042573,-2087.19810019,0.00017201,2]
[401247393,1768071042582,-150.0,0.00017212,2]
[401247395,1768071042592,-150.0,0.00017217,2]
[401247397,1768071042601,-150.0,0.00017229,2]
[401247399,1768071042610,-150.0,0.00017229,2]
[401247401,1768071042619,-150.0,0.00017229,2]
[401247403,1768071042629,-1151.0,0.0001726,2]
[401247405,1768071042638,-150.0,0.0001728,2]
[401247407,1768071042648,-150.0,0.00017293,2]
[401247409,1768071042658,-150.0,0.00017296,2]
[401247411,1768071042668,-150.0,0.000173,2]
[401247414,1768071042678,-150.0,0.00017325,2]
[401247416,1768071042691,-150.0,0.00017357,2]
[401247418,1768071042701,-150.0,0.00017357,2]
[401247420,1768071042711,-150.0,0.00017357,2]
[401247422,1768071042720,-150.0,0.0001737,2]
[401247425,1768071042730,-150.0,0.00017374,2]
[401247426,1768071042744,-150.0,0.000174,2]
[401247429,1768071042754,-150.0,0.00017421,2]
[401247431,1768071042763,-3253.67946274,0.00017434,2]
[401247433,1768071042772,-2087.19810019,0.00017434,2]
[401247434,1768071042782,-150.0,0.00017437,2]
[401247437,1768071042791,-159.16121496,0.00017451,2]
[401247439,1768071042801,-150.0,0.00017452,2]
[401247441,1768071042810,-150.0,0.0001746,2]
[401247443,1768071042820,-150.0,0.00017486,2]
[401247445,1768071042829,-150.0,0.00017486,2]
[401247446,1768071042839,-150.0,0.00017486,2]
[401247449,1768071042849,-328.28462056,0.00017494,2]
[401247451,1768071042859,-150.0,0.000175,2]
[401247453,1768071042869,-150.0,0.0001753,2]
[401247455,1768071042879,-1330.0,0.00017541,2]
[401247457,1768071042893,-3468.0,0.00017541,2]
[401247459,1768071042903,-614.0,0.00017541,2]
[401247461,1768071042912,-1405.0,0.00017541,2]
[401247463,1768071042922,-1266.0,0.00017541,2]
[401247465,1768071042932,-505.0,0.00017541,2]
[401247468,1768071042942,-150.0,0.00017541,2]
[401247470,1768071042952,-566.0,0.00017541,2]
[401247472,1768071042962,-2437.0,0.00017541,2]
[401247474,1768071042972,-150.0,0.0001755,2]
[401247476,1768071042981,-150.0,0.0001755,2]
[401247478,1768071042991,-150.0,0.0001755,2]
[401247480,1768071043004,-150.0,0.0001755,2]
[401247482,1768071043013,-150.0,0.0001755,2]
[401247485,1768071043023,-150.0,0.000176,2]
[401247487,1768071043033,-150.0,0.00017609,2]
[401247489,1768071043043,-150.0,0.00017614,2]
[401247492,1768071043057,-150.0,0.00017614,2]
[401247494,1768071043069,-150.0,0.00017614,2]
[401247497,1768071043079,-150.0,0.0001764,2]
[401247500,1768071043093,-150.0,0.00017662,2]
[401247502,1768071043103,-3253.67946274,0.00017667,2]
[401247504,1768071043113,-2087.19810019,0.00017667,2]
[401247506,1768071043122,-150.0,0.00017679,2]
[401247508,1768071043132,-150.0,0.00017687,2]
[401247510,1768071043142,-150.0,0.000177,2]
[401247512,1768071043152,-151.0,0.00017722,2]
[401247515,1768071043161,-500.0,0.00017722,2]
[401247517,1768071043170,-250.0,0.00017722,2]
[401247518,1768071043180,-1000.0,0.00017722,2]
[401247521,1768071043190,-250.0,0.00017722,2]
[401247523,1768071043200,-500.0,0.00017722,2]
[401247525,1768071043209,-250.0,0.00017722,2]
[401247527,1768071043219,-533.88981491,0.00017722,2]
[401247529,1768071043228,-998.0,0.00017722,2]
[401247531,1768071043237,-2000.0,0.00017722,2]
[401247533,1768071043248,-150.0,0.0001773,2]
[401247535,1768071043258,-150.0,0.00017743,2]
[401247537,1768071043267,-150.0,0.00017743,2]
[401247539,1768071043277,-150.0,0.00017743,2]
[401247541,1768071043289,-150.0,0.00017765,2]
[401247543,1768071043299,-150.0,0.00017775,2]
[401247545,1768071043308,-150.0,0.000178,2]
[401247547,1768071043317,-150.0,0.00017807,2]
[401247549,1768071043327,-150.0,0.0001782,2]
[401247551,1768071043336,-150.0,0.00017843,2]
[401247554,1768071043346,-150.0,0.00017871,2]
[401247556,1768071043355,-150.0,0.00017871,2]
[401247558,1768071043364,-150.0,0.00017871,2]
[401247560,1768071043374,-150.0,0.00017887,2]
[401247561,1768071043383,-1014.0604,0.000179,2]
[401247564,1768071043393,-3253.67946274,0.000179,2]
[401247566,1768071043402,-150.0,0.000179,2]
[401247568,1768071043414,-2087.19810019,0.000179,2]
[401247570,1768071043424,-612.5496192,0.000179,2]
[401247572,1768071043434,-224.30464682,0.000179,2]
[401247574,1768071043444,-3720.5258511,0.000179,2]
[401247576,1768071043453,-150.0,0.0001791,2]
[401247578,1768071043463,-150.0,0.00017922,2]
[401247580,1768071043472,-150.0,0.00017936,2]
[401247582,1768071043483,-500.0,0.00017973,2]
[401247584,1768071043492,-380.05360747,0.00017973,2]
[401247586,1768071043503,-500.0,0.00017973,2]
[401247588,1768071043512,-500.0,0.00017973,2]
[401247589,1768071043521,-500.0,0.00017973,2]
[401247590,1768071043531,-500.0,0.00017973,2]
[401247591,1768071043541,-500.0,0.00017973,2]
[401247592,1768071043550,-500.0,0.00017973,2]
[401247593,1768071043560,-500.0,0.00017973,2]
[401247594,1768071043570,-500.0,0.00017973,2]
[401247595,1768071043580,-500.0,0.00017973,2]
[401247596,1768071043589,-500.0,0.00017973,2]
[401247597,1768071043600,-500.0,0.00017973,2]
[401247598,1768071043610,-500.0,0.00017973,2]
[401247599,1768071043620,-500.0,0.00017973,2]
[401247600,1768071043629,-500.0,0.00017973,2]
[401247601,1768071043639,-500.0,0.00017973,2]
[401247602,1768071043650,-500.0,0.00017973,2]
[401247603,1768071043668,-500.0,0.00017973,2]
[401247604,1768071043679,-500.0,0.00017973,2]
[401247605,1768071043689,-500.0,0.00017973,2]
[401247606,1768071043699,-500.0,0.00017973,2]
[401247607,1768071043709,-632.76984978,0.00017973,2]
[401247608,1768071043719,-171.83605725,0.00017973,2]
[401247609,1768071043729,-500.0,0.00017973,2]
[401247610,1768071043742,-500.0,0.00017973,2]
[401247611,1768071043752,-500.0,0.00017973,2]
[401247612,1768071043763,-500.0,0.00017973,2]
[401247613,1768071043772,-500.0,0.00017973,2]
[401247614,1768071043783,-500.0,0.00017973,2]
[401247615,1768071043793,-500.0,0.00017973,2]
[401247616,1768071043802,-183.2165965,0.00017973,2]
[401247617,1768071043812,-500.0,0.00017973,2]
[401247618,1768071043821,-500.0,0.00017973,2]
[401247620,1768071043831,-200.0,0.00017973,2]
[401247622,1768071043840,-290.33169083,0.00017982,2]
[401247624,1768071043850,-1428.32031009,0.0001799,2]
[401247626,1768071043859,-1428.32031009,0.0001799,2]
[401247628,1768071043869,-300.0,0.00017999,2]
[401247630,1768071043878,-500.0,0.00017999,2]
[401247632,1768071043888,-500.0,0.00017999,2]
[401247633,1768071043897,-500.0,0.00017999,2]
[401247634,1768071043906,-500.0,0.00017999,2]
[401247635,1768071043916,-506.38314442,0.00017999,2]
[401247636,1768071043926,-300.0,0.00017999,2]
[401247637,1768071043935,-300.0,0.00017999,2]
[401247638,1768071043946,-228.26093574,0.00018,2]
[401247640,1768071043956,-214.53615726,0.00018,2]
[401247641,1768071043966,-245.68641829,0.00018,2]
[401247642,1768071043975,-297.11963758,0.00018,2]
[401247643,1768071043985,-234.23341909,0.00018,2]
[401247644,1768071043995,-150.0,0.00018,2]
[401247645,1768071044004,-150.0,0.00018,2]
[401247647,1768071044013,-150.0,0.00018,2]
[401247649,1768071044023,-190.53247606,0.00018,2]
[401247651,1768071044032,-150.0,0.00018,2]
[401247652,1768071044042,-3732188.43354147,0.00018,2]
[401247655,1768071044060,-598.22138567,0.00018,2]
[401247660,1768071044374,-17638.83077168,0.00018,2]
[401247661,1768071044702,-4575.0,0.00015604,2]
[401247663,1768071044811,-2130.0045,0.00015604,2]
[401247664,1768071044821,-4820.0,0.00017541,2]
[401247665,1768071044831,-6926.59669581,0.00018,2]
[401247680,1768071046273,-4470.0,0.00018,2]
[401247681,1768071046433,-3998.41803839,0.00018,2]
[401247688,1768071093714,290.19645214,0.00012951,2]
[401247689,1768071228725,150.1,0.00012054,2]
[401247690,1768071238715,150.51583165,0.00012054,2]
[401247726,1768072231431,-1200.0,0.00015394,2]
[401247727,1768072231441,-3454.28959904,0.00015395,2]
[401247728,1768072231451,-162.71284772,0.00015395,2]
[401247729,1768072231485,-1.38149845,0.00015395,2]
[401247730,1768072231495,-211.54913958,0.00015404,2]
[401247731,1768072231504,-999.0,0.00015431,3]
[401247732,1768072231514,-300.0,0.00015493,2]
[401247733,1768072231523,-500.0,0.00015494,2]
[401247734,1768072231532,-500.0,0.00015494,2]
[401247735,1768072231541,-500.0,0.00015494,2]
[401247736,1768072231550,-500.0,0.00015494,2]
[401247737,1768072231561,-500.0,0.00015494,2]
[401247738,1768072231570,-500.0,0.00015494,2]
[401247739,1768072231579,-500.0,0.00015494,2]
[401247740,1768072231588,-500.0,0.00015494,2]
[401247742,1768072231597,-500.0,0.00015494,2]
[401247743,1768072231606,-500.0,0.00015494,2]
[401247745,1768072231615,-500.0,0.00015494,2]
[401247746,1768072231624,-500.0,0.00015494,2]
[401247747,1768072231633,-500.0,0.00015494,2]
[401247748,1768072231642,-500.0,0.00015494,2]
[401247749,1768072231651,-500.0,0.00015494,2]
[401247750,1768072231660,-171.19246632,0.00015494,2]
[401247751,1768072231673,-328.80753368,0.00015494,2]
[401247752,1768072231683,-98.32645833,0.00015494,2]
[401247753,1768072231694,-401.67354167,0.00015494,2]
[401247754,1768072231703,-500.0,0.00015494,2]
[401247755,1768072231713,-500.0,0.00015494,2]
[401247756,1768072231722,-500.0,0.00015494,2]
[401247757,1768072231731,-500.0,0.00015494,2]
[401247758,1768072231740,-500.0,0.00015494,2]
[401247759,1768072231750,-500.0,0.00015494,2]
[401247760,1768072231759,-484.9715771,0.00015494,2]
[401247761,1768072231768,-500.0,0.00015494,2]
[401247762,1768072231778,-500.0,0.00015494,2]
[401247763,1768072231787,-500.0,0.00015494,2]
[401247764,1768072231796,-500.0,0.00015494,2]
[401247765,1768072231806,-500.0,0.00015494,2]
[401247766,1768072231814,-500.0,0.00015494,2]
[401247767,1768072231823,-500.0,0.00015494,2]
[401247768,1768072231833,-500.0,0.00015494,2]
[401247769,1768072231842,-500.0,0.00015494,2]
[401247770,1768072231851,-500.0,0.00015494,2]
[401247771,1768072231861,-500.0,0.00015494,2]
[401247772,1768072231871,-500.0,0.00015494,2]
[401247773,1768072231881,-500.0,0.00015494,2]
[401247774,1768072231890,-500.0,0.00015494,2]
[401247775,1768072231899,-500.0,0.00015494,2]
[401247776,1768072231908,-500.0,0.00015494,2]
[401247777,1768072231918,-500.0,0.00015494,2]
[401247778,1768072231927,-500.0,0.00015494,2]
[401247779,1768072231935,-500.0,0.00015494,2]
[401247780,1768072231944,-500.0,0.00015494,2]
[401247781,1768072231953,-292.1724339,0.00015494,2]
[401247782,1768072231966,-207.8275661,0.00015494,2]
[401247783,1768072231975,-500.0,0.00015494,2]
[401247784,1768072231985,-974.65844494,0.00015494,2]
[401247785,1768072231994,-637.14629037,0.00015494,2]
[401247787,1768072237695,-300.0,0.00015494,2]
[401247966,1768072239521,-37.51215457,0.00015494,2]
[401247968,1768072239530,-974.65844494,0.00015494,2]
[401247971,1768072239540,-974.65844494,0.00015494,2]
[401247972,1768072239554,-974.65844494,0.00015494,2]
[401247974,1768072239571,-974.65844494,0.00015494,2]
[401247976,1768072239580,-974.65844494,0.00015494,2]
[401247979,1768072239590,-974.65844494,0.00015494,2]
[401247981,1768072239599,-974.65844494,0.00015494,2]
[401247982,1768072239608,-974.65844494,0.00015494,2]
[401247984,1768072239620,-974.65844494,0.00015494,2]
[401247987,1768072239636,-974.65844494,0.00015494,2]
[401247988,1768072239648,-974.65844494,0.00015494,2]
[401247991,1768072239659,-974.65844494,0.00015494,2]
[401247993,1768072239668,-974.65844494,0.00015494,2]
[401247995,1768072239678,-974.65844494,0.00015494,2]
[401247996,1768072239687,-974.65844494,0.00015494,2]
[401247998,1768072239698,-974.65844494,0.00015494,2]
[401248000,1768072239707,-974.65844494,0.00015494,2]
[401248002,1768072239716,-974.65844494,0.00015494,2]
[401248004,1768072239727,-974.65844494,0.00015494,2]
[401248006,1768072239737,-974.65844494,0.00015494,2]
[401248009,1768072239747,-18.46850477,0.00015494,2]
[401248011,1768072239759,-421.78261454,0.00015494,2]
[401248015,1768072239795,-534.40732563,0.00015494,2]
[401248017,1768072239804,-974.65844494,0.00015494,2]
[401248019,1768072239815,-974.65844494,0.00015494,2]
[401248021,1768072239824,-974.65844494,0.00015494,2]
[401248023,1768072239833,-974.65844494,0.00015494,2]
[401248025,1768072239843,-974.65844494,0.00015494,2]
[401248027,1768072239852,-974.65844494,0.00015494,2]
[401248029,1768072239862,-964.91489735,0.00015494,2]
[401248032,1768072239873,-9.74354759,0.00015494,2]
[401248034,1768072239883,-974.65844494,0.00015494,2]
[401248036,1768072239893,-974.65844494,0.00015494,2]
[401248037,1768072239903,-974.65844494,0.00015494,2]
[401248039,1768072239912,-974.65844494,0.00015494,2]
[401248042,1768072239922,-974.65844494,0.00015494,2]
[401248043,1768072239931,-974.65844494,0.00015494,2]
[401248046,1768072239941,-974.65844494,0.00015494,2]
[401248048,1768072239950,-974.65844494,0.00015494,2]
[401248049,1768072239960,-974.65844494,0.00015494,2]
[401248052,1768072239969,-974.65844494,0.00015494,2]
[401248053,1768072239978,-974.65844494,0.00015494,2]
[401248055,1768072239987,-974.65844494,0.00015494,2]
[401248057,1768072239996,-974.65844494,0.00015494,2]
[401248059,1768072240006,-974.65844494,0.00015494,2]
[401248062,1768072240015,-1000000.0,0.00015495,2]
[401248064,1768072240024,-500.0,0.00015495,2]
[401248066,1768072240033,-2500.0,0.00015504,2]
[401248068,1768072240043,-200.0,0.00015591,2]
[401248069,1768072240051,-9999.99,0.00015595,2]
[401248073,1768072240061,-200.0,0.00015595,2]
[401248075,1768072240070,-500.0,0.00015595,2]
[401248076,1768072240079,-237.03265591,0.00015595,2]
[401248079,1768072240089,-500.0,0.00015595,2]
[401248080,1768072240097,-505.93123413,0.00015595,2]
[401248082,1768072240107,-500.0,0.00015595,2]
[401248085,1768072240116,-500.0,0.00015595,2]
[401248086,1768072240125,-200.0,0.00015595,2]
[401248089,1768072240135,-157.35456451,0.00015595,2]
[401248090,1768072240144,-151.0,0.00015595,2]
[401248092,1768072240153,-151.0,0.00015595,2]
[401248094,1768072240162,-151.0,0.00015595,2]
[401248096,1768072240172,-151.0,0.00015595,2]
[401248098,1768072240181,-151.0,0.00015595,2]
[401248100,1768072240190,-151.0,0.00015595,2]
[401248102,1768072240199,-151.0,0.00015595,2]
[401248104,1768072240208,-151.0,0.00015595,2]
[401248106,1768072240217,-151.0,0.00015595,2]
[401248108,1768072240226,-151.0,0.00015595,2]
[401248110,1768072240235,-151.0,0.00015595,2]
[401248112,1768072240244,-151.0,0.00015595,2]
[401248114,1768072240253,-151.0,0.00015595,2]
[401248116,1768072240263,-500.0,0.00015601,2]
[401248118,1768072240273,-475.87463091,0.00015601,2]
[401248120,1768072240282,-333.33986442,0.00015601,2]
[401248122,1768072240292,-500.0,0.00015601,2]
[401248124,1768072240302,-513.51212024,0.00015601,2]
[401248126,1768072240312,-312.0964356,0.00015601,2]
[401248128,1768072240321,-500.0,0.00015601,2]
[401248130,1768072240331,-500.0,0.00015601,2]
[401248132,1768072240341,-500.0,0.00015601,2]
[401248134,1768072240350,-500.0,0.00015601,2]
[401248136,1768072240359,-500.0,0.00015601,2]
[401248139,1768072240369,-806.6,0.00015602,2]
[401248140,1768072240379,-12328.59,0.00015602,2]
[401248142,1768072240390,-1992.44,0.00015602,2]
[401248144,1768072240399,-8017.43,0.00015602,2]
[401248146,1768072240408,-999.99,0.00015602,2]
[401248149,1768072240420,-861.589,0.00015603,2]
[401248150,1768072240429,-500.0,0.00015603,2]
[401248152,1768072240439,-500.0,0.00015603,2]
[401248155,1768072240449,-500.0,0.00015603,2]
[401248156,1768072240458,-500.0,0.00015603,2]
[401248159,1768072240467,-500.0,0.00015603,2]
[401248160,1768072240477,-537.63319283,0.00015603,2]
[401248162,1768072240487,-28752.3012,0.00015604,2]
[401248165,1768072240496,-346.85,0.0001567,2]
[401248167,1768072240505,-1000.0,0.0001567,2]
[401248169,1768072240515,-3454.28959901,0.00015673,2]
[401248170,1768072240524,-199.19,0.00015745,2]
[401248172,1768072240533,-151.0,0.00015745,2]
[401248174,1768072240542,-151.0,0.00015745,2]
[401248176,1768072240552,-500.0,0.00015769,2]
[401248179,1768072240562,-151.0,0.00015807,2]
[401248181,1768072240572,-151.0,0.00015807,2]
[401248183,1768072240581,-806.6,0.00015876,2]
[401248185,1768072240590,-184.61,0.00015887,2]
[401248187,1768072240599,-500.0,0.00015899,2]
[401248189,1768072240608,-500.0,0.00015899,2]
[401248190,1768072240618,-500.0,0.00015899,2]
[401248191,1768072240628,-500.0,0.00015899,2]
[401248192,1768072240637,-166.66,0.00015918,2]
[401248193,1768072240647,-3454.28959901,0.00015952,2]
[401248194,1768072240656,-500.0,0.00016143,2]
[401248195,1768072240665,-200.0,0.00016143,2]
[401248196,1768072240674,-806.6,0.0001615,2]
[401248197,1768072240683,-150.0,0.000162,2]
[401248198,1768072240692,-150.0,0.000162,2]
[401248199,1768072240701,-150.0,0.000162,2]